[Event "AI Cup Div-3 2023"]
[Site "Online"]
[Date "2023.09.25"]
[Round "1.1"]
[White "Kovalev, Vladislav"]
[Black "Malakhov, Vladimir"]
[Result "0-1"]
[Annotator "ChessBase"]
[ECO "C54"]
[WhiteElo "2582"]
[BlackElo "2646"]
[PlyCount "110"]
[EventDate "2023.09.18"]
[EventType "k.o."]
[EventCountry "NET"]
[SourceTitle "playchess.com"]
[Source "ChessBase"]
[SourceQuality "1"]
[TimeControl "900+3"]

1. e4 {[%emt 0:00:04]} e5 {[%emt 0:00:06]} 2. Nf3 {[%emt 0:00:00]} Nc6 {[%emt 0:00:03]} 3. Bc4 {[%emt 0:00:02]} Bc5 {[%emt 0:00:03]} 4. c3 {[%emt 0:00:01]} Nf6 {[%emt 0:00:02]} 5. d4 {[%emt 0:00:01]} exd4 {[%emt 0:00:08]} 6. e5 {[%emt 0:00:00]} d5 {[%emt 0:00:11]} 7. Bb5 {[%emt 0:00:01]} Ne4 {[%emt 0:00:10]} 8. cxd4 {[%emt 0:00:01]} Bb6 {[%emt 0:00:08]} 9. Nc3 {[%emt 0:00:05]} O-O {[%emt 0:00:14]} 10. Be3 {[%emt 0:00:02]} Bg4 {[%emt 0:00:14]} 11. h3 {[%emt 0:00:01]} Bh5 {[%emt 0:00:04]} 12. Qc2 {[%emt 0:00:03]} Nxc3 {[%emt 0:00:23]} 13. bxc3 {[%emt 0:00:36]} f6 {[%emt 0:00:10]} 14. Bxc6 {[%emt 0:00:50]} Bxf3 {[%emt 0:00:04]} 15. gxf3 {[%emt 0:00:54]} bxc6 {[%emt 0:00:03]} 16. f4 {[%emt 0:00:02]} Qe7 {[%emt 0:00:33]} 17. Qa4 {[%emt 0:00:59]} c5 {[%emt 0:03:22]} 18. Qa3 {[%emt 0:00:19]} c6 {[%emt 0:00:10]} 19. O-O-O {[%emt 0:00:43]} Qe6 {[%emt 0:00:19]} 20. dxc5 {[%emt 0:01:44]} Bc7 {[%emt 0:00:03]} 21. exf6 {[%emt 0:00:02]} Qxf6 {[%emt 0:00:44]} 22. Rd4 {[%emt 0:00:34]} Rab8 {[%emt 0:01:01]} 23. Rhd1 {[%emt 0:07:50]} Qg6 {[%emt 0:02:20]} 24. R1d3 {[%emt 0:00:39]} Rb5 {[%emt 0:00:57]} 25. c4 {[%emt 0:00:04]} dxc4 {[%emt 0:03:03]} 26. Rxc4 {[%emt 0:00:00]} Rfb8 {[%emt 0:00:01]} 27. Rb3 {[%emt 0:00:00]} Rxb3 {[%emt 0:00:07]} 28. axb3 {[%emt 0:00:01]} Qd3 {[%emt 0:00:02]} 29. Rd4 {[%emt 0:00:42]} Qc3+ {[%emt 0:00:45]} 30. Kd1 {[%emt 0:00:00]} Bxf4 {[%emt 0:00:43]} 31. Rxf4 {[%emt 0:00:12]} Rxb3 {[%emt 0:00:07]} 32. Qa2 {[%emt 0:00:03]} Qd3+ {[%emt 0:00:08]} 33. Ke1 {[%emt 0:00:01]} Qc3+ {[%emt 0:00:10]} 34. Ke2 {[%emt 0:00:02]} g5 {[%emt 0:00:01]} 35. Rg4 {[%emt 0:00:05]} Kf8 {[%emt 0:00:01]} 36. Kf3 {[%emt 0:00:00]} Qd3 {[%emt 0:00:03]} 37. Qxa7 {[%emt 0:00:02]} Qd5+ {[%emt 0:00:06]} 38. Re4 {[%emt 0:00:05]} Qf5+ {[%emt 0:00:02]} 39. Kg3 {[%emt 0:00:03]} Qxe4 {[%emt 0:00:01]} 40. Qa8+ {[%emt 0:00:02]} Kg7 {[%emt 0:00:01]} 41. Qd8 {[%emt 0:00:05]} Rxe3+ {[%emt 0:00:05]} 42. fxe3 {[%emt 0:00:01]} Qxe3+ {[%emt 0:00:01]} 43. Kg2 {[%emt 0:00:00]} Qxc5 {[%emt 0:00:01]} 44. Qd7+ {[%emt 0:00:03]} Kf6 {[%emt 0:00:04]} 45. Qxh7 {[%emt 0:00:05]} Qd5+ {[%emt 0:00:02]} 46. Kg3 {[%emt 0:00:05]} c5 {[%emt 0:00:03]} 47. Qh8+ {[%emt 0:00:05]} Kf5 {[%emt 0:00:02]} 48. Qh7+ {[%emt 0:00:02]} Ke5 {[%emt 0:00:02]} 49. Qg7+ {[%emt 0:00:02]} Ke4 {[%emt 0:00:01]} 50. Qg6+ {[%emt 0:00:04]} Ke3 {[%emt 0:00:05]} 51. Qe8+ {[%emt 0:00:05]} Qe4 {[%emt 0:00:02]} 52. Qd8 {[%emt 0:00:04]} Qf4+ {[%emt 0:00:10]} 53. Kg2 {[%emt 0:00:00]} Qf2+ {[%emt 0:00:00]} 54. Kh1 {[%emt 0:00:01]} Qe1+ {[%emt 0:00:01]} 55. Kg2 {[%emt 0:00:01]} Qd2+ {[%emt 0:00:01]} 0-1

[Event "AI Cup Div-3 2023"]
[Site "Online"]
[Date "2023.09.25"]
[Round "1.1"]
[White "Le, Tuan Minh"]
[Black "Muradli, Mahammad"]
[Result "0-1"]
[Annotator "ChessBase"]
[ECO "D02"]
[WhiteElo "2559"]
[BlackElo "2550"]
[PlyCount "70"]
[EventDate "2023.09.18"]
[EventType "k.o."]
[EventCountry "NET"]
[SourceTitle "playchess.com"]
[Source "ChessBase"]
[SourceQuality "1"]
[TimeControl "900+3"]

1. d4 {[%emt 0:00:05]} Nf6 {[%emt 0:00:05]} 2. Nf3 {[%emt 0:00:00]} c5 {[%emt 0:00:01]} 3. c3 {[%emt 0:00:01]} d5 {[%emt 0:00:02]} 4. Bf4 {[%emt 0:00:01]} Nc6 {[%emt 0:00:01]} 5. e3 {[%emt 0:00:01]} Qb6 {[%emt 0:00:39]} 6. Qc2 {[%emt 0:00:02]} Bg4 {[%emt 0:00:22]} 7. Nbd2 {[%emt 0:00:03]} e6 {[%emt 0:00:09]} 8. Bd3 {[%emt 0:00:03]} Rc8 {[%emt 0:01:32]} 9. Qb1 {[%emt 0:00:03]} Be7 {[%emt 0:00:51]} 10. O-O {[%emt 0:00:02]} O-O {[%emt 0:00:18]} 11. Ne5 {[%emt 0:00:03]} Bh5 {[%emt 0:02:19]} 12. Bg5 {[%emt 0:00:03]} Qd8 {[%emt 0:01:22]} 13. f4 {[%emt 0:00:07]} Bg6 {[%emt 0:00:19]} 14. Bxg6 {[%emt 0:00:03]} hxg6 {[%emt 0:00:00]} 15. Bxf6 {[%emt 0:00:00]} Bxf6 {[%emt 0:00:13]} 16. Rf3 {[%emt 0:00:01]} Bxe5 {[%emt 0:01:29]} 17. fxe5 {[%emt 0:00:02]} f5 {[%emt 0:00:03]} 18. exf6 {[%emt 0:00:03]} Rxf6 {[%emt 0:00:00]} 19. Qe1 {[%emt 0:00:08]} Qb6 {[%emt 0:00:48]} 20. Rb1 {[%emt 0:00:07]} cxd4 {[%emt 0:00:17]} 21. exd4 {[%emt 0:00:00]} e5 {[%emt 0:00:09]} 22. Kh1 {[%emt 0:00:12]} e4 {[%emt 0:00:20]} 23. Rh3 {[%emt 0:00:09]} Rcf8 {[%emt 0:00:12]} 24. Qh4 {[%emt 0:00:02]} Qa6 {[%emt 0:00:19]} 25. Qh7+ {[%emt 0:00:04]} Kf7 {[%emt 0:00:01]} 26. c4 {[%emt 0:00:24]} Qxa2 {[%emt 0:00:20]} 27. g4 {[%emt 0:00:02]} Qa5 {[%emt 0:01:16]} 28. Rd1 {[%emt 0:00:02]} Nxd4 {[%emt 0:00:44]} 29. Ra3 {[%emt 0:00:06]} Qb6 {[%emt 0:00:32]} 30. cxd5 {[%emt 0:00:04]} Qxb2 {[%emt 0:00:07]} 31. Rxa7 {[%emt 0:00:20]} e3 {[%emt 0:00:27]} 32. Nc4 {[%emt 0:00:06]} Qb3 {[%emt 0:01:01]} 33. Ne5+ {[%emt 0:01:10]} Ke7 {[%emt 0:00:01]} 34. Qxg7+ {[%emt 0:01:58]} R8f7 {[%emt 0:00:02]} 35. Nxg6+ {[%emt 0:00:15]} Kd6 {[%emt 0:00:03]} 0-1

[Event "AI Cup Div-3 2023"]
[Site "Online"]
[Date "2023.09.25"]
[Round "1.1"]
[White "Makarian, Rudik"]
[Black "Mamedov, Rauf"]
[Result "1/2-1/2"]
[Annotator "ChessBase"]
[ECO "D11"]
[WhiteElo "2548"]
[BlackElo "2640"]
[PlyCount "51"]
[EventDate "2023.09.18"]
[EventType "k.o."]
[EventCountry "NET"]
[SourceTitle "playchess.com"]
[Source "ChessBase"]
[SourceQuality "1"]
[TimeControl "900+3"]

1. d4 {[%emt 0:00:05]} Nf6 {[%emt 0:00:06]} 2. c4 {[%emt 0:00:00]} c6 {[%emt 0:00:01]} 3. Nf3 {[%emt 0:00:01]} d5 {[%emt 0:00:01]} 4. Nc3 {[%emt 0:00:01]} dxc4 {[%emt 0:00:00]} 5. g3 {[%emt 0:00:06]} Bf5 {[%emt 0:00:10]} 6. Ne5 {[%emt 0:00:08]} Nbd7 {[%emt 0:00:39]} 7. Nxc4 {[%emt 0:00:02]} e6 {[%emt 0:00:29]} 8. Bg2 {[%emt 0:00:03]} Be7 {[%emt 0:00:05]} 9. O-O {[%emt 0:00:01]} O-O {[%emt 0:00:01]} 10. e4 {[%emt 0:00:03]} Bg6 {[%emt 0:00:01]} 11. Qe2 {[%emt 0:00:03]} Nb6 {[%emt 0:00:12]} 12. Rd1 {[%emt 0:00:15]} Nxc4 {[%emt 0:01:09]} 13. Qxc4 {[%emt 0:00:00]} Qa5 {[%emt 0:00:21]} 14. a3 {[%emt 0:01:05]} b5 {[%emt 0:00:59]} 15. Qxc6 {[%emt 0:01:09]} b4 {[%emt 0:00:02]} 16. e5 {[%emt 0:00:01]} bxc3 {[%emt 0:00:18]} 17. exf6 {[%emt 0:00:57]} cxb2 {[%emt 0:00:15]} 18. Bxb2 {[%emt 0:00:01]} Bxf6 {[%emt 0:00:02]} 19. Bc3 {[%emt 0:00:18]} Qf5 {[%emt 0:00:47]} 20. Qxa8 {[%emt 0:00:33]} Rxa8 {[%emt 0:00:02]} 21. Bxa8 {[%emt 0:00:00]} h5 {[%emt 0:00:07]} 22. Rac1 {[%emt 0:01:57]} Qg4 {[%emt 0:00:17]} 23. Bg2 {[%emt 0:00:48]} Be4 {[%emt 0:00:30]} 24. h3 {[%emt 0:01:51]} Qf5 {[%emt 0:00:06]} 25. Bxe4 {[%emt 0:00:00]} Qxe4 {[%emt 0:00:03]} 26. d5 {[%emt 0:00:01]} 1/2-1/2

[Event "AI Cup Div-3 2023"]
[Site "Online"]
[Date "2023.09.25"]
[Round "1.1"]
[White "Beerdsen, Thomas"]
[Black "Alekseev, Evgeny"]
[Result "0-1"]
[Annotator "ChessBase"]
[ECO "C51"]
[WhiteElo "2511"]
[BlackElo "2573"]
[PlyCount "108"]
[EventDate "2023.09.18"]
[EventType "k.o."]
[EventCountry "NET"]
[SourceTitle "playchess.com"]
[Source "ChessBase"]
[SourceQuality "1"]
[TimeControl "900+3"]

1. e4 {[%emt 0:00:06]} e5 {[%emt 0:00:07]} 2. Nf3 {[%emt 0:00:02]} Nc6 {[%emt 0:00:02]} 3. Bc4 {[%emt 0:00:08]} Bc5 {[%emt 0:00:06]} 4. b4 {[%emt 0:00:03]} Bxb4 {[%emt 0:00:05]} 5. c3 {[%emt 0:00:01]} Be7 {[%emt 0:00:09]} 6. d4 {[%emt 0:00:02]} Na5 {[%emt 0:00:07]} 7. Bd3 {[%emt 0:00:01]} d6 {[%emt 0:00:08]} 8. dxe5 {[%emt 0:00:05]} dxe5 {[%emt 0:00:05]} 9. Nxe5 {[%emt 0:00:03]} Nf6 {[%emt 0:00:18]} 10. O-O {[%emt 0:00:03]} O-O {[%emt 0:00:10]} 11. Qc2 {[%emt 0:00:04]} Nd7 {[%emt 0:01:18]} 12. Nxd7 {[%emt 0:00:05]} Bxd7 {[%emt 0:00:02]} 13. e5 {[%emt 0:00:22]} g6 {[%emt 0:01:31]} 14. Bh6 {[%emt 0:01:40]} Re8 {[%emt 0:00:01]} 15. Nd2 {[%emt 0:00:28]} Bc6 {[%emt 0:00:05]} 16. f4 {[%emt 0:01:20]} Qd5 {[%emt 0:02:40]} 17. Ne4 {[%emt 0:00:23]} Nc4 {[%emt 0:01:40]} 18. Rae1 {[%emt 0:00:29]} Nb2 {[%emt 0:00:34]} 19. Qxb2 {[%emt 0:03:47]} Qxd3 {[%emt 0:00:03]} 20. Rf3 {[%emt 0:00:04]} Qc4 {[%emt 0:01:09]} 21. Qc2 {[%emt 0:01:06]} Rad8 {[%emt 0:00:15]} 22. h3 {[%emt 0:00:36]} f5 {[%emt 0:01:12]} 23. Nd2 {[%emt 0:01:31]} Rxd2 {[%emt 0:01:38]} 24. Qxd2 {[%emt 0:00:02]} Bxf3 {[%emt 0:00:02]} 25. gxf3 {[%emt 0:00:07]} Rd8 {[%emt 0:00:02]} 26. Qb2 {[%emt 0:01:09]} b6 {[%emt 0:00:21]} 27. Qb3 {[%emt 0:01:09]} Qxb3 {[%emt 0:00:10]} 28. axb3 {[%emt 0:00:00]} Kf7 {[%emt 0:00:15]} 29. e6+ {[%emt 0:00:35]} Ke8 {[%emt 0:00:03]} 30. Bg7 {[%emt 0:00:09]} Rd3 {[%emt 0:00:27]} 31. Ra1 {[%emt 0:00:20]} a5 {[%emt 0:00:09]} 32. b4 {[%emt 0:00:02]} axb4 {[%emt 0:00:07]} 33. cxb4 {[%emt 0:00:02]} Bxb4 {[%emt 0:00:15]} 34. Ra8+ {[%emt 0:00:05]} Rd8 {[%emt 0:00:06]} 35. Ra7 {[%emt 0:00:10]} Ke7 {[%emt 0:00:28]} 36. Rxc7+ {[%emt 0:00:10]} Kxe6 {[%emt 0:00:02]} 37. Be5 {[%emt 0:00:09]} Rd7 {[%emt 0:00:15]} 38. Rc8 {[%emt 0:00:04]} Kd5 {[%emt 0:00:07]} 39. Kf2 {[%emt 0:00:07]} Bc5+ {[%emt 0:00:04]} 40. Kg3 {[%emt 0:00:04]} b5 {[%emt 0:00:07]} 41. h4 {[%emt 0:00:04]} b4 {[%emt 0:00:05]} 42. h5 {[%emt 0:00:03]} Bd4 {[%emt 0:00:12]} 43. Rb8 {[%emt 0:00:06]} Kc4 {[%emt 0:00:02]} 44. hxg6 {[%emt 0:00:02]} hxg6 {[%emt 0:00:02]} 45. Kh4 {[%emt 0:00:02]} Rd5 {[%emt 0:00:10]} 46. Kg5 {[%emt 0:00:06]} Bxe5 {[%emt 0:00:03]} 47. fxe5 {[%emt 0:00:00]} Rxe5 {[%emt 0:00:02]} 48. Kxg6 {[%emt 0:00:02]} b3 {[%emt 0:00:02]} 49. f4 {[%emt 0:00:04]} Rb5 {[%emt 0:00:02]} 50. Rc8+ {[%emt 0:00:02]} Kb4 {[%emt 0:00:02]} 51. Rc1 {[%emt 0:00:06]} b2 {[%emt 0:00:01]} 52. Rh1 {[%emt 0:00:02]} Kb3 {[%emt 0:00:03]} 53. Rh3+ {[%emt 0:00:05]} Ka2 {[%emt 0:00:02]} 54. Rh2 {[%emt 0:00:02]} Ka1 {[%emt 0:00:01]} 0-1

[Event "AI Cup Div-3 2023"]
[Site "Online"]
[Date "2023.09.25"]
[Round "1.2"]
[White "Robson, Ray"]
[Black "Kravtsiv, Martyn"]
[Result "1-0"]
[Annotator "TA"]
[ECO "D35"]
[WhiteElo "2699"]
[BlackElo "2598"]
[PlyCount "113"]
[EventDate "2023.09.18"]
[EventType "k.o."]
[EventCountry "NET"]
[SourceTitle "playchess.com"]
[Source "ChessBase"]
[SourceQuality "1"]
[TimeControl "900+3"]

{[%evp 17,113,18,13,9,16,15,25,-29,-22,-26,-14,-18,0,0,0,0,0,0,0,0,0,0,37,17,12,-15,-17,-6,63,63,64,70,63,61,64,62,43,54,56,61,97,97,97,97,97,97,97,97,97,92,97,90,151,151,137,165,218,166,503,523,539,546,532,531,518,509,542,505,464,491,746,739,650,430,386,336,386,371,804,622,1687,1645,1697,1422,3795,3558,2092,1492,12850,29941,29981,29982,29982,29983,29984,29985,29985,29986]} 1. c4 {[%emt 0:00:03]} e6 {[%emt 0:00:05]} 2. Nc3 {[%emt 0:00:02]} d5 {[%emt 0:00:03]} 3. d4 {[%emt 0:00:01]} Nf6 {[%emt 0:00:01]} 4. cxd5 {[%emt 0:00:00]} exd5 {[%emt 0:00:02]} 5. Bg5 {[%emt 0:00:01]} c6 {[%emt 0:00:02]} 6. e3 {[%emt 0:00:05]} Be7 {[%emt 0:00:04]} 7. Bd3 {[%emt 0:00:02]} Nbd7 {[%emt 0:00:01]} 8. Nf3 {[%emt 0:00:31]} O-O {[%emt 0:01:30]} 9. O-O {[%emt 0:00:13]} Ne4 {[%emt 0:00:42][%mdl 64] [#] Discovered Attack} 10. Bf4 {[%emt 0:00:09] D35: Queen's Gambit Declined: Exchange Variation.} (10. Nxe4 $2 {loses.} dxe4 11. Bxe4 (11. Bxe7 $2 Qxe7 12. Re1 Nf6 $19) 11... Bxg5 $19) 10... Ndf6 {[%emt 0:00:05]} 11. h3 {[%emt 0:00:10]} Bf5 {[%emt 0:00:58] [#]} 12. g4 $146 {[%emt 0:00:02]} (12. Ne5 $142) ({Predecessor:} 12. Qc2 Re8 13. Be5 Bg6 14. Nh4 Nxc3 15. Nxg6 hxg6 16. bxc3 Bd6 17. f4 b5 18. a4 {1-0 Ibrahimli,M (2416)-Goryachkina,A (2579) Titled Tuesday intern op 13th Sep Early blitz 2022 (11)}) 12... Nxc3 $11 {[%emt 0:00:51]} 13. bxc3 {[%emt 0:00:01]} Bxd3 {[%emt 0:00:04]} 14. Qxd3 {[%emt 0:00:00]} Qc8 {[%emt 0:00:57][%cal Of6g4]} 15. Kg2 {[%emt 0:00:59]} b5 {[%emt 0:00:09]} 16. a4 {[%emt 0:02:40]} a6 {[%emt 0:00:05]} 17. Bg5 {[%emt 0:00:23]} Re8 {[%emt 0:00:46][%cal Of6g4]} 18. Bxf6 {[%emt 0:00:02]} Bxf6 {[%emt 0:00:04]} 19. Ra2 {[%emt 0:00:01]} Rb8 {[%emt 0:04:16]} 20. axb5 {[%emt 0:00:27]} cxb5 {[%emt 0:00:18]} 21. Rfa1 {[%emt 0:01:06]} Rb6 {[%emt 0:00:04]} 22. Qf5 {[%emt 0:00:19][%cal Oa2a6]} Qxf5 {[%emt 0:00:30]} ({Black should try} 22... Qb7 $11) 23. gxf5 $14 {[%emt 0:00:01]} Ra8 {[%emt 0:00:01]} 24. Ne1 {[%emt 0:00:22]} Be7 {[%emt 0:01:04]} 25. Nd3 {[%emt 0:00:24]} Bd6 {[%emt 0:00:02]} 26. Nb4 {[%emt 0:02:04]} Bxb4 {[%emt 0:00:11]} 27. cxb4 {[%emt 0:00:00][%mdl 4096] Endgame KRR-KRR} g6 {[%emt 0:00:41]} 28. fxg6 {[%emt 0:00:15]} hxg6 {[%emt 0:00:07]} 29. Rc1 {[%emt 0:00:05]} Rd6 {[%emt 0:00:30]} 30. Rc7 {[%emt 0:00:11]} Re8 {[%emt 0:00:08]} 31. Rac2 {[%emt 0:00:29]} Ree6 {[%emt 0:00:06]} 32. Kg3 {[%emt 0:00:21]} Kg7 {[%emt 0:00:09]} 33. h4 {[%emt 0:00:08] White is more active.} Rf6 {[%emt 0:00:06]} 34. R2c5 {[%emt 0:01:48]} Kh6 {[%emt 0:00:34] [#]} (34... Rf5 $142) 35. Re7 $1 $16 {[%emt 0:00:12]} Rf5 {[%emt 0:00:12]} 36. f4 {[%emt 0:01:23][%cal Bf2f4,Bf4e5][%mdl 32]} Kg7 {[%emt 0:00:03]} (36... Kh7 $142 37. Kg4 Kg7) 37. Re5 {[%emt 0:00:35]} Rxe5 $2 {[%emt 0:01:12]} (37... Kf6 38. Kf3 Kg7) 38. fxe5 $18 {[%emt 0:00:20] KR-KR} ({Less strong is} 38. dxe5 Rd7 $16) 38... Rd7 {[%emt 0:00:00]} 39. Rc6 {[%emt 0:00:11]} Ra7 {[%emt 0:00:01]} 40. Rd6 {[%emt 0:00:15]} Rc7 {[%emt 0:00:02]} 41. Rxd5 {[%emt 0:00:11]} ({Not} 41. Rxa6 Rc4 42. Rd6 Rxb4 43. Rxd5 Rb3 $18) 41... Rc4 {[%emt 0:00:01]} 42. Rd6 {[%emt 0:00:09]} Rxb4 {[%emt 0:00:02]} 43. Rxa6 {[%emt 0:00:00]} Rb1 {[%emt 0:00:01]} (43... Kf8 $142 44. Kf4 Ke7 45. Ra7+ Ke6) 44. Ra7 {[%emt 0:00:12] aiming for e6.} Kf8 {[%emt 0:00:01]} 45. Rb7 {[%emt 0:00:07] d5 would be deadly.} b4 {[%emt 0:00:02]} 46. Kf4 {[%emt 0:00:04] And now d5 would win.} b3 {[%emt 0:00:02]} 47. Ke4 {[%emt 0:00:04] Strongly threatening Kd5.} b2 $2 {[%emt 0:00:02]} (47... Rh1 48. Rxb3 Rxh4+ 49. Kf3 Rh5 50. Rb8+ Ke7) 48. Kd5 {[%emt 0:00:08] Black must now prevent Kd6.} Kg8 {[%emt 0:00:24]} 49. Kd6 {[%emt 0:00:06]} Kf8 {[%emt 0:00:01]} 50. d5 {[%emt 0:00:06][%cal Bd4d5,Bd5d6][%mdl 32]} Kg8 {[%emt 0:00:01]} 51. e4 {[%emt 0:00:04]} Kf8 {[%emt 0:00:03]} 52. Kd7 {[%emt 0:00:03] White threatens d6 and mate.} Kg7 {[%emt 0:00:04]} 53. d6 {[%emt 0:00:03]} g5 {[%emt 0:00:06] White mates.} 54. hxg5 {[%emt 0:00:01]} Kg6 {[%emt 0:00:00]} 55. Ke7 {[%emt 0:00:02]} Re1 {[%emt 0:00:03]} 56. Rxb2 {[%emt 0:00:02]} Rxe4 {[%emt 0:00:02]} 57. Rb5 {[%emt 0:00:05] Weighted Error Value: White=0.10 (very precise) /Black=0.23 (precise)} 1-0

[Event "AI Cup Div-3 2023"]
[Site "Online"]
[Date "2023.09.25"]
[Round "1.2"]
[White "Matlakov, Maxim"]
[Black "Xiong, Jeffery"]
[Result "1/2-1/2"]
[Annotator "TA"]
[ECO "A34"]
[WhiteElo "2674"]
[BlackElo "2693"]
[PlyCount "103"]
[EventDate "2023.09.18"]
[EventType "k.o."]
[EventCountry "NET"]
[SourceTitle "playchess.com"]
[Source "ChessBase"]
[SourceQuality "1"]
[TimeControl "900+3"]

{[%evp 13,103,0,16,0,13,0,12,2,16,0,0,0,0,0,0,-93,-58,-105,-106,-98,-105,-90,-83,-68,-24,-76,-59,-95,0,0,0,0,0,0,0,0,0,0,0,0,0,0,0,0,0,0,0,0,-6,-45,0,-99,-86,-97,-90,-95,-91,-112,-117,-239,-218,-208,-222,-226,-4,-110,0,-128,-75,-75,-75,-86,-49,-165,-114,-95,-109,-97,-27,-34,-42,-54,-59,-107,-37,-115,0,-115,0,-114,0,-114]} 1. c4 {[%emt 0:00:04]} c5 {[%emt 0:00:11]} 2. Nf3 {[%emt 0:00:05]} Nf6 {[%emt 0:00:01]} 3. Nc3 {[%emt 0:00:02]} d5 {[%emt 0:00:01]} 4. cxd5 {[%emt 0:00:04]} Nxd5 {[%emt 0:00:01]} 5. g3 {[%emt 0:01:37]} Nc6 {[%emt 0:00:03]} 6. Bg2 {[%emt 0:00:05]} Nc7 {[%emt 0:00:01]} 7. a3 {[%emt 0:00:07]} g6 {[%emt 0:00:01] is cutting edge theory.} 8. h4 {[%emt 0:00:11] A34: Symmetrical English: 2 Nc3, lines with ...d5.} h5 {[%emt 0:00:52]} 9. d3 {[%emt 0:01:58]} Bg7 {[%emt 0:00:06] [#]} 10. Be3 $146 {[%emt 0:00:03]} ({Predecessor:} 10. Bd2 O-O 11. Rc1 Ne6 12. Na4 Qd6 13. Ng5 Nxg5 14. hxg5 Bg4 15. Bf4 Be5 16. Bxe5 Nxe5 17. Nxc5 {½-½ Matjushin,G (2459)-Oleksienko,M (2494) UKR-ch sf U20 2003 (9)}) 10... Nd4 {[%emt 0:04:55]} 11. Rc1 {[%emt 0:00:13]} (11. Ne4 $5 {[%cal Re4c5]}) 11... Bg4 {[%emt 0:00:33]} 12. Nh2 {[%emt 0:01:24][%cal Oh2g4]} Be6 {[%emt 0:01:49]} 13. Bxd4 {[%emt 0:01:02]} cxd4 {[%emt 0:00:14]} 14. Na4 {[%emt 0:00:14]} (14. Ne4 $11) 14... Bd5 {[%emt 0:00:08] This pair of bishops is nice.} 15. O-O {[%emt 0:00:28]} (15. Bxd5 $15 Qxd5 16. Nf3) 15... Bxg2 $17 {[%emt 0:00:29]} 16. Kxg2 {[%emt 0:00:01]} Bh6 $1 {[%emt 0:00:01]} 17. Rc2 {[%emt 0:01:08]} Ne6 {[%emt 0:00:33]} 18. Nf3 {[%emt 0:00:23]} Qd5 {[%emt 0:00:01] Dodges Nc5} 19. b4 {[%emt 0:00:17]} (19. e4 $11 dxe3 20. Nc3) 19... b6 $1 {[%emt 0:00:01]} 20. Nb2 {[%emt 0:00:15][%cal Ba4b2,Bb2c4,Bc4e5,Be5c6][%mdl 32] White is weak on the dark squares} O-O {[%emt 0:00:02]} (20... b5 $1 $17 21. Qa1 O-O) 21. Nc4 $11 {[%emt 0:00:05]} Rfc8 {[%emt 0:00:09][%cal Bf8c8,Bc8c7,Bc7c5][%mdl 32]} 22. a4 {[%emt 0:00:15]} Rc7 {[%emt 0:00:06]} 23. b5 {[%emt 0:00:48]} Rac8 {[%emt 0:00:20]} 24. Ra2 {[%emt 0:00:07]} Rc5 {[%emt 0:01:01]} 25. Qb1 {[%emt 0:00:12]} Ng7 {[%emt 0:00:06]} 26. Nce5 {[%emt 0:00:51]} Nf5 {[%emt 0:00:22]} 27. Nc6 {[%emt 0:00:08]} a5 {[%emt 0:01:43]} 28. Rc2 {[%emt 0:00:56]} Rxc2 {[%emt 0:00:01]} 29. Qxc2 {[%emt 0:00:00]} f6 {[%emt 0:00:00]} 30. Qc4 {[%emt 0:01:36]} Qxc4 {[%emt 0:00:01]} 31. dxc4 {[%emt 0:00:01]} e5 {[%emt 0:00:01]} 32. Rb1 {[%emt 0:00:30]} (32. c5 $1 $11 {keeps the balance.} bxc5 33. Rb1) 32... Bf8 $1 $17 {[%emt 0:00:10]} 33. Nd2 {[%emt 0:00:01]} Ne7 $1 {[%emt 0:00:06]} 34. Nxe7+ {[%emt 0:01:02]} Bxe7 {[%emt 0:00:00][%mdl 4096] Endgame KRB-KRN} 35. Rc1 {[%emt 0:00:05]} Kf7 {[%emt 0:00:01]} 36. Nb3 {[%emt 0:00:11]} (36. f4 $17 {might work better.}) 36... Ba3 $19 {[%emt 0:00:49]} 37. Rc2 {[%emt 0:00:06][%cal Oc4c5]} Ke6 {[%emt 0:00:00]} 38. f4 {[%emt 0:00:02]} Bc5 $2 {[%emt 0:00:44]} ({Black should try} 38... Bb4 $19 {Strongly threatening ...Bc3.} 39. Kf3 Bc3) 39. Kf3 {[%emt 0:00:04]} (39. fxe5 $1 $11 fxe5 40. Kf3) 39... Kf5 {[%emt 0:00:00]} (39... Bb4 $17) 40. Nd2 {[%emt 0:00:05]} (40. fxe5 $11 {remains equal.} fxe5 41. Nxc5 Rxc5 42. e4+ dxe3 43. Kxe3) 40... Bb4 {[%emt 0:00:15]} ({Better is} 40... exf4 $1 {Hoping for ...Re8.} 41. gxf4 g5) 41. Ne4 $17 {[%emt 0:00:01][%cal Oc4c5] And now c5! would win.} Ke6 {[%emt 0:00:06] Prevents c5.} 42. fxe5 {[%emt 0:00:02]} Kxe5 {[%emt 0:00:23]} 43. Rc1 {[%emt 0:00:03]} (43. Nf2 $15) 43... f5 {[%emt 0:00:09]} (43... Ke6 $1 $19 44. e3 d3) 44. Nf2 {[%emt 0:00:03] [#]} Kd6 $1 {[%emt 0:00:01] Threatens to win with ...Bc3.} 45. Nd3 {[%emt 0:00:11]} Re8 {[%emt 0:00:05]} (45... Bc3 $17 46. e3 Bd2) 46. Rc2 $11 {[%emt 0:00:06]} Re3+ {[%emt 0:00:01]} 47. Kf2 {[%emt 0:00:01]} Bc5 {[%emt 0:00:10]} 48. Rc1 {[%emt 0:00:01] [#]} (48. Rb2 $15 {should be considered.}) 48... Re4 {[%emt 0:00:05]} (48... Kc7 $1 $17 49. Rd1 Bd6) 49. Kf3 {[%emt 0:00:07]} (49. Kf1 $15) 49... Re3+ {[%emt 0:00:01]} 50. Kf2 {[%emt 0:00:01]} Re4 {[%emt 0:00:01]} 51. Kf3 $1 {[%emt 0:00:00]} Re3+ {[%emt 0:00:01]} 52. Kf2 {[%emt 0:00:01] Weighted Error Value: White=0.25 (precise) /Black=0.29 (precise)} 1/2-1/2